fUST/lending_fUST_20250725
["ID","MTS","AMOUNT","RATE_DAILY","PERIOD"]
[374650480,1753399860627,-460.0,0.00019574,2]
[374650481,1753399860637,-151.0,0.00019574,2]
[374650482,1753399860646,-402.712883,0.00019574,2]
[374650483,1753399860656,-402.712883,0.00019574,2]
[374650484,1753399860665,-202.86026692,0.00019574,2]
[374650485,1753399860675,-526.80176444,0.00019574,2]
[374650486,1753399860683,-482.82,0.00019574,2]
[374650487,1753399860693,-460.0,0.00019574,2]
[374650488,1753399860702,-460.0,0.00019574,2]
[374650489,1753399860711,-584.784385,0.00019574,2]
[374650490,1753399860720,-1568.11,0.00019574,2]
[374650491,1753399860731,-584.784385,0.00019574,2]
[374650492,1753399860740,-460.0,0.00019574,2]
[374650493,1753399860750,-460.0,0.00019574,2]
[374650494,1753399860759,-460.0,0.00019574,2]
[374650495,1753399860769,-460.0,0.00019574,2]
[374650496,1753399860778,-272.086409,0.00019574,2]
[374650497,1753399860787,-773.44,0.00019574,2]
[374650498,1753399860797,-272.086409,0.00019574,2]
[374650499,1753399860806,-460.0,0.00019574,2]
[374650500,1753399860816,-460.0,0.00019574,2]
[374650501,1753399860826,-460.0,0.00019574,2]
[374650502,1753399860834,-622.12,0.00019574,2]
[374650503,1753399860844,-460.0,0.00019574,2]
[374650504,1753399860854,-568.85,0.00019574,2]
[374650505,1753399860865,-460.0,0.00019574,2]
[374650506,1753399860875,-460.0,0.00019574,2]
[374650507,1753399860885,-460.0,0.00019574,2]
[374650508,1753399860895,-289.320867,0.00019574,2]
[374650509,1753399860904,-289.320867,0.00019574,2]
[374650510,1753399860913,-602.31,0.00019574,2]
[374650511,1753399860923,-460.0,0.00019574,2]
[374650512,1753399860933,-460.0,0.00019574,2]
[374650513,1753399860942,-460.0,0.00019574,2]
[374650514,1753399860952,-625.1,0.00019574,2]
[374650515,1753399860961,-460.0,0.00019574,2]
[374650516,1753399860971,-460.0,0.00019574,2]
[374650517,1753399860981,-709.88,0.00019574,2]
[374650518,1753399860990,-460.0,0.00019574,2]
[374650519,1753399861000,-460.0,0.00019574,2]
[374650520,1753399861010,-460.0,0.00019574,2]
[374650521,1753399861019,-460.0,0.00019574,2]
[374650522,1753399861031,-765.17,0.00019574,2]
[374650523,1753399861041,-460.0,0.00019574,2]
[374650524,1753399861051,-460.0,0.00019574,2]
[374650525,1753399861061,-597.29,0.00019574,2]
[374650526,1753399861071,-499.18,0.00019574,2]
[374650527,1753399861081,-460.0,0.00019574,2]
[374650528,1753399861090,-460.0,0.00019574,2]
[374650529,1753399861099,-460.0,0.00019574,2]
[374650530,1753399861109,-488.16,0.00019574,2]
[374650531,1753399861119,-462.06309785,0.00019574,2]
[374650532,1753399861129,-460.0,0.00019574,2]
[374650533,1753399861139,-174.67482996,0.00019574,2]
[374650534,1753399861149,-761.02,0.00019574,2]
[374650535,1753399861159,-460.0,0.00019574,2]
[374650536,1753399861168,-151.0,0.00019575,2]
[374650537,1753399861179,-151.0,0.00019575,2]
[374650538,1753399861192,-151.0,0.00019575,2]
[374650539,1753399861202,-227.811382,0.00019575,2]
[374650540,1753399861212,-151.0,0.00019575,2]
[374650541,1753399861221,-227.811382,0.00019575,2]
[374650542,1753399861231,-151.0,0.00019575,2]
[374650543,1753399861241,-460.0,0.00019575,2]
[374650544,1753399861250,-463.25321709,0.00019575,2]
[374650545,1753399861262,-460.0,0.00019575,2]
[374650546,1753399861272,-460.0,0.00019575,2]
[374650547,1753399861281,-460.0,0.00019575,2]
[374650548,1753399861291,-460.0,0.00019575,2]
[374650549,1753399861300,-460.0,0.00019575,2]
[374650550,1753399861309,-460.0,0.00019575,2]
[374650551,1753399861319,-460.0,0.00019575,2]
[374650552,1753399861328,-564.18,0.00019575,2]
[374650553,1753399861337,-460.0,0.00019575,2]
[374650554,1753399861347,-460.0,0.00019575,2]
[374650555,1753399861356,-151.0,0.00019575,2]
[374650556,1753399861366,-240.108579,0.00019575,2]
[374650557,1753399861375,-240.108579,0.00019575,2]
[374650558,1753399861386,-244.119832,0.00019575,2]
[374650559,1753399861396,-244.119832,0.00019575,2]
[374650560,1753399861406,-253.865037,0.00019575,2]
[374650561,1753399861415,-253.865037,0.00019575,2]
[374650562,1753399861425,-486.40619451,0.00019576,2]
[374650563,1753399861434,-460.0,0.00019576,2]
[374650564,1753399861443,-460.0,0.00019576,2]
[374650565,1753399861453,-460.0,0.00019576,2]
[374650566,1753399861463,-460.0,0.00019576,2]
[374650567,1753399861472,-352.44409855,0.00019576,2]
[374650568,1753399861481,-1062.04,0.00019576,2]
[374650569,1753399861491,-460.0,0.00019576,2]
[374650570,1753399861500,-855.34,0.00019576,2]
[374650571,1753399861509,-460.0,0.00019576,2]
[374650572,1753399861519,-460.0,0.00019576,2]
[374650573,1753399861529,-460.0,0.00019576,2]
[374650574,1753399861538,-460.0,0.00019576,2]
[374650575,1753399861547,-460.0,0.00019576,2]
[374650576,1753399861557,-452.05898746,0.00019576,2]
[374650577,1753399861567,-460.0,0.00019576,2]
[374650578,1753399861576,-460.0,0.00019576,2]
[374650579,1753399861586,-155.218752,0.00019576,2]
[374650580,1753399861595,-155.218752,0.00019576,2]
[374650581,1753399861605,-460.0,0.00019576,2]
[374650582,1753399861615,-460.0,0.00019576,2]
[374650583,1753399861625,-158.206444,0.00019577,2]
[374650584,1753399861634,-158.206444,0.00019577,2]
[374650585,1753399861645,-151.0,0.000196,2]
[374650586,1753399861654,-345.0,0.00019602,2]
[374650587,1753399861663,-345.0,0.00019606,2]
[374650588,1753399861672,-271.343558,0.0001961,2]
[374650589,1753399861682,-151.0,0.0001961,2]
[374650590,1753399861691,-337.648918,0.0001961,2]
[374650591,1753399861701,-337.648918,0.0001961,2]
[374650592,1753399861711,-646.526861,0.0001961,2]
[374650593,1753399861720,-646.526861,0.0001961,2]
[374650594,1753399861729,-281.0996548,0.00019621,2]
[374650595,1753399861739,-1000.0,0.00019621,2]
[374650596,1753399861748,-1000.0,0.00019621,2]
[374650597,1753399861757,-1000.0,0.00019621,2]
[374650598,1753399861766,-1000.0,0.00019621,2]
[374650599,1753399861776,-507.79648748,0.00019621,2]
[374650600,1753399861786,-1000.0,0.00019621,2]
[374650601,1753399861795,-1000.0,0.00019621,2]
[374650602,1753399861804,-345.0,0.00019634,2]
[374650603,1753399861814,-345.0,0.0001971,2]
[374650604,1753399861823,-460.0,0.00019745,2]
[374650605,1753399861833,-460.0,0.00019746,2]
[374650606,1753399861842,-371.66227126,0.00019746,2]
[374650607,1753399861851,-460.0,0.00019746,2]
[374650608,1753399861862,-305.47832356,0.00019746,2]
[374650609,1753399861871,-460.0,0.00019746,2]
[374650610,1753399861882,-460.0,0.00019746,2]
[374650611,1753399861892,-460.0,0.00019746,2]
[374650612,1753399861902,-563.63,0.00019746,2]
[374650613,1753399861912,-6403.75,0.00019746,2]
[374650614,1753399861921,-2963.71,0.00019746,2]
[374650615,1753399861931,-460.0,0.00019746,2]
[374650616,1753399861940,-525.47,0.00019746,2]
[374650617,1753399861951,-460.0,0.00019746,2]
[374650618,1753399861963,-935.07,0.00019746,2]
[374650619,1753399861974,-695.65,0.00019746,2]
[374650620,1753399861983,-460.0,0.00019746,2]
[374650621,1753399861992,-460.0,0.00019746,2]
[374650622,1753399862002,-2730.7,0.00019746,2]
[374650623,1753399862011,-3445.19,0.00019746,2]
[374650624,1753399862020,-460.0,0.00019746,2]
[374650625,1753399862032,-460.0,0.00019746,2]
[374650626,1753399862044,-780.66,0.00019746,2]
[374650627,1753399862055,-579.36,0.00019746,2]
[374650628,1753399862065,-460.0,0.00019746,2]
[374650629,1753399862075,-2429.08,0.00019746,2]
[374650630,1753399862085,-608.29,0.00019746,2]
[374650631,1753399862095,-2165.27,0.00019746,2]
[374650632,1753399862105,-693.71,0.00019746,2]
[374650633,1753399862116,-1024.03,0.00019746,2]
[374650634,1753399862126,-704.29,0.00019746,2]
[374650635,1753399862135,-460.0,0.00019747,2]
[374650636,1753399862146,-475.87,0.00019747,2]
[374650637,1753399862157,-460.0,0.00019747,2]
[374650638,1753399862167,-605.27,0.00019747,2]
[374650639,1753399862179,-460.0,0.00019747,2]
[374650640,1753399862189,-460.0,0.00019747,2]
[374650641,1753399862200,-460.0,0.00019747,2]
[374650642,1753399862209,-703.07,0.00019747,2]
[374650643,1753399862219,-591.92,0.00019747,2]
[374650644,1753399862229,-460.0,0.00019747,2]
[374650645,1753399862238,-460.0,0.00019747,2]
[374650646,1753399862247,-460.0,0.00019747,2]
[374650647,1753399862257,-2559.46385596,0.00019747,2]
[374650648,1753399862268,-940.25,0.00019747,2]
[374650649,1753399862278,-572.88,0.00019747,2]
[374650650,1753399862287,-460.0,0.00019747,2]
[374650651,1753399862297,-698.83,0.00019747,2]
[374650652,1753399862307,-460.0,0.00019747,2]
[374650653,1753399862317,-774.33,0.00019747,2]
[374650654,1753399862327,-460.0,0.00019747,2]
[374650655,1753399862336,-1174.24,0.00019747,2]
[374650656,1753399862347,-460.0,0.00019747,2]
[374650657,1753399862357,-461.44,0.00019747,2]
[374650658,1753399862456,-460.0,0.00019747,2]
[374650659,1753399862466,-460.0,0.00019747,2]
[374650660,1753399862475,-1071.38,0.00019747,2]
[374650661,1753399862485,-537.39,0.00019747,2]
[374650662,1753399862494,-460.0,0.00019747,2]
[374650663,1753399862504,-460.0,0.00019747,2]
[374650664,1753399862514,-949.99,0.00019747,2]
[374650665,1753399862523,-587.19,0.00019747,2]
[374650666,1753399862533,-460.0,0.00019747,2]
[374650667,1753399862542,-915.41,0.00019747,2]
[374650668,1753399862554,-1401.05,0.00019747,2]
[374650669,1753399862572,-460.0,0.00019747,2]
[374650670,1753399862582,-177.98277192,0.00019747,2]
[374650671,1753399862591,-460.0,0.00019747,2]
[374650672,1753399862601,-460.0,0.00019747,2]
[374650673,1753399862610,-460.0,0.00019747,2]
[374650674,1753399862621,-668.12,0.00019747,2]
[374650675,1753399862631,-460.0,0.00019747,2]
[374650676,1753399862640,-460.0,0.00019747,2]
[374650677,1753399862650,-615.52,0.00019747,2]
[374650678,1753399862659,-460.0,0.00019747,2]
[374650679,1753399862669,-460.0,0.00019747,2]
[374650680,1753399862679,-460.0,0.00019747,2]
[374650681,1753399862689,-476.6,0.00019747,2]
[374650682,1753399862699,-979.0,0.00019748,2]
[374650683,1753399862708,-453.0,0.00019748,2]
[374650684,1753399862718,-637.12379564,0.00019748,2]
[374650685,1753399862728,-500.0,0.00019748,2]
[374650686,1753399862738,-1126.0,0.00019748,2]
[374650687,1753399862748,-151.0,0.00019748,2]
[374650688,1753399862758,-151.0,0.00019748,2]
[374650689,1753399862769,-460.0,0.00019748,2]
[374650690,1753399862779,-460.0,0.00019748,2]
[374650691,1753399862790,-460.0,0.00019748,2]
[374650692,1753399862800,-460.0,0.00019748,2]
[374650693,1753399862812,-460.0,0.00019748,2]
[374650694,1753399862821,-460.0,0.00019748,2]
[374650695,1753399862831,-581.82,0.00019748,2]
[374650696,1753399862841,-460.0,0.00019748,2]
[374650697,1753399862850,-465.09424804,0.00019748,2]
[374650698,1753399862860,-460.0,0.00019748,2]
[374650699,1753399862875,-460.0,0.00019748,2]
[374650700,1753399862885,-460.0,0.00019748,2]
[374650701,1753399862895,-658.95,0.00019748,2]
[374650702,1753399862905,-1505.55,0.00019748,2]
[374650703,1753399862914,-460.0,0.00019748,2]
[374650704,1753399862924,-460.0,0.00019748,2]
[374650705,1753399862933,-460.0,0.00019748,2]
[374650706,1753399862943,-1395.06,0.00019748,2]
[374650707,1753399862953,-1160.38,0.00019748,2]
[374650708,1753399862963,-460.0,0.00019748,2]
[374650709,1753399862972,-460.0,0.00019748,2]
[374650710,1753399862982,-897.47,0.00019748,2]
[374650711,1753399862992,-479.16,0.00019748,2]
[374650712,1753399863002,-714.45,0.00019748,2]
[374650713,1753399863012,-460.0,0.00019748,2]
[374650714,1753399863022,-1030.31,0.00019748,2]
[374650715,1753399863034,-540.07,0.00019748,2]
[374650716,1753399863044,-645.03,0.00019748,2]
[374650717,1753399863054,-460.0,0.00019748,2]
[374650718,1753399863064,-345.0,0.00019778,2]
[374650719,1753399863075,-178.70934786,0.00019789,2]
[374650720,1753399863085,-151.0,0.00019846,2]
[374650721,1753399863095,-289.10496542,0.00019846,2]
[374650722,1753399863106,-460.0,0.00019846,2]
[374650723,1753399863117,-460.0,0.00019846,2]
[374650724,1753399863127,-460.0,0.00019846,2]
[374650725,1753399863137,-460.0,0.00019846,2]
[374650726,1753399863147,-287.65145211,0.00019846,2]
[374650727,1753399863157,-460.0,0.00019846,2]
[374650728,1753399863168,-460.0,0.00019846,2]
[374650729,1753399863178,-584.784385,0.00019846,2]
[374650730,1753399863190,-584.784385,0.00019846,2]
[374650731,1753399863201,-460.0,0.00019846,2]
[374650732,1753399863211,-460.0,0.00019846,2]
[374650733,1753399863221,-598.13,0.00019846,2]
[374650734,1753399863231,-837.31,0.00019846,2]
[374650735,1753399863241,-460.0,0.00019846,2]
[374650736,1753399863251,-894.37,0.00019846,2]
[374650737,1753399863261,-272.086409,0.00019846,2]
[374650738,1753399863271,-272.086409,0.00019846,2]
[374650739,1753399863283,-460.0,0.00019846,2]
[374650740,1753399863293,-1022.85,0.00019846,2]
[374650741,1753399863302,-460.0,0.00019846,2]
[374650742,1753399863312,-460.0,0.00019846,2]
[374650743,1753399863321,-686.1,0.00019846,2]
[374650744,1753399863331,-460.0,0.00019846,2]
[374650745,1753399863340,-460.0,0.00019846,2]
[374650746,1753399863350,-460.0,0.00019846,2]
[374650747,1753399863360,-1269.57,0.00019846,2]
[374650748,1753399863372,-460.0,0.00019846,2]
[374650749,1753399863382,-460.0,0.00019846,2]
[374650750,1753399863392,-756.81,0.00019846,2]
[374650751,1753399863402,-370.88270683,0.00019846,2]
[374650752,1753399863411,-307.79716171,0.00019846,2]
[374650753,1753399863421,-1183.51,0.00019846,2]
[374650754,1753399863431,-467.08440281,0.00019846,2]
[374650755,1753399863440,-460.0,0.00019846,2]
[374650756,1753399863451,-561.14,0.00019846,2]
[374650757,1753399863460,-151.0,0.00019846,2]
[374650758,1753399863470,-289.320867,0.00019846,2]
[374650759,1753399863481,-289.320867,0.00019846,2]
[374650760,1753399863490,-460.0,0.00019846,2]
[374650761,1753399863499,-273.72809956,0.00019846,2]
[374650762,1753399863509,-460.0,0.00019846,2]
[374650763,1753399863519,-6067.09,0.00019846,2]
[374650764,1753399863528,-460.0,0.00019846,2]
[374650765,1753399863538,-2320.41,0.00019846,2]
[374650766,1753399863549,-240.108579,0.00019846,2]
[374650767,1753399863561,-240.108577,0.00019846,2]
[374650768,1753399863570,-481.98,0.00019846,2]
[374650769,1753399863580,-582.71,0.00019846,2]
[374650770,1753399863590,-155.218752,0.00019846,2]
[374650771,1753399863599,-155.218759,0.00019846,2]
[374650772,1753399863609,-502.17,0.00019846,2]
[374650773,1753399863622,-2415.76,0.00019846,2]
[374650774,1753399863631,-464.5,0.00019846,2]
[374650775,1753399863640,-917.1,0.00019846,2]
[374650776,1753399863650,-1191.29,0.00019846,2]
[374650777,1753399863659,-244.119832,0.00019846,2]
[374650778,1753399863669,-244.119827,0.00019846,2]
[374650779,1753399863679,-1026.55,0.00019846,2]
[374650780,1753399863688,-460.0,0.00019846,2]
[374650781,1753399863698,-624.54,0.00019846,2]
[374650782,1753399863708,-460.0,0.00019846,2]
[374650783,1753399863718,-3364.24,0.00019846,2]
[374650784,1753399863727,-3300.61,0.00019846,2]
[374650785,1753399863737,-389.68021653,0.00019846,2]
[374650786,1753399863747,-919.74,0.00019846,2]
[374650787,1753399863758,-2289.55,0.00019846,2]
[374650788,1753399863768,-2820.52,0.00019846,2]
[374650789,1753399863777,-460.0,0.00019846,2]
[374650790,1753399863787,-253.865037,0.00019846,2]
[374650791,1753399863796,-253.865037,0.00019846,2]
[374650792,1753399863806,-460.0,0.00019847,2]
[374650793,1753399863815,-460.0,0.00019847,2]
[374650794,1753399863824,-497.44927223,0.00019847,2]
[374650795,1753399863834,-460.0,0.00019847,2]
[374650796,1753399863843,-460.0,0.00019847,2]
[374650797,1753399863853,-491.59,0.00019847,2]
[374650798,1753399863866,-471.11,0.00019847,2]
[374650799,1753399863876,-460.0,0.00019847,2]
[374650800,1753399863886,-683.11,0.00019847,2]
[374650801,1753399863896,-460.0,0.00019847,2]
[374650802,1753399863905,-1079.03,0.00019847,2]
[374650803,1753399863916,-3533.48,0.00019847,2]
[374650804,1753399863926,-460.0,0.00019847,2]
[374650805,1753399863935,-3070.14,0.00019847,2]
[374650806,1753399863945,-464.16800289,0.00019847,2]
[374650807,1753399863955,-460.0,0.00019847,2]
[374650808,1753399863964,-460.0,0.00019848,2]
[374650809,1753399863974,-460.0,0.00019848,2]
[374650810,1753399863984,-189.162948,0.00019848,2]
[374650811,1753399863994,-151.0,0.00019848,2]
[374650812,1753399864004,-402.712883,0.00019848,2]
[374650813,1753399864013,-402.712883,0.00019848,2]
[374650814,1753399864023,-227.811382,0.00019848,2]
[374650815,1753399864034,-151.0,0.00019848,2]
[374650816,1753399864044,-227.811382,0.00019848,2]
[374650817,1753399864054,-158.206444,0.00019848,2]
[374650818,1753399864064,-158.206444,0.00019848,2]
[374650819,1753399864074,-482.82,0.00019848,2]
[374650820,1753399864084,-460.87311057,0.00019848,2]
[374650821,1753399864094,-460.0,0.00019848,2]
[374650822,1753399864105,-1568.11,0.00019848,2]
[374650823,1753399864117,-460.0,0.00019848,2]
[374650824,1753399864127,-460.0,0.00019848,2]
[374650825,1753399864137,-460.0,0.00019848,2]
[374650826,1753399864146,-773.44,0.00019848,2]
[374650827,1753399864156,-460.0,0.00019848,2]
[374650828,1753399864165,-460.0,0.00019848,2]
[374650829,1753399864175,-472.09814532,0.00019848,2]
[374650830,1753399864184,-151.0,0.00019848,2]
[374650831,1753399864194,-622.12,0.00019848,2]
[374650832,1753399864204,-460.0,0.00019848,2]
[374650833,1753399864213,-568.85,0.00019848,2]
[374650834,1753399864223,-460.0,0.00019848,2]
[374650835,1753399864232,-337.648918,0.00019848,2]
[374650836,1753399864241,-337.648918,0.00019848,2]
[374650837,1753399864251,-460.0,0.00019848,2]
[374650838,1753399864261,-460.0,0.00019848,2]
[374650839,1753399864270,-602.31,0.00019848,2]
[374650840,1753399864280,-460.0,0.00019848,2]
[374650841,1753399864289,-460.0,0.00019848,2]
[374650842,1753399864299,-460.0,0.00019848,2]
[374650843,1753399864308,-625.1,0.00019848,2]
[374650844,1753399864318,-646.526861,0.00019848,2]
[374650845,1753399864327,-646.526861,0.00019848,2]
[374650846,1753399864337,-460.0,0.00019848,2]
[374650847,1753399864347,-460.0,0.00019848,2]
[374650848,1753399864356,-709.88,0.00019848,2]
[374650849,1753399864367,-460.0,0.00019848,2]
[374650850,1753399864377,-460.0,0.00019848,2]
[374650851,1753399864386,-460.0,0.00019848,2]
[374650852,1753399864395,-460.0,0.00019848,2]
[374650853,1753399864405,-765.17,0.00019848,2]
[374650854,1753399864414,-460.0,0.00019848,2]
[374650855,1753399864423,-460.0,0.00019848,2]
[374650856,1753399864433,-597.29,0.00019848,2]
[374650857,1753399864442,-499.18,0.00019848,2]
[374650858,1753399864452,-460.0,0.00019848,2]
[374650859,1753399864462,-460.0,0.00019848,2]
[374650860,1753399864472,-460.0,0.00019848,2]
[374650861,1753399864481,-488.16,0.00019848,2]
[374650862,1753399864491,-460.0,0.00019848,2]
[374650863,1753399864501,-761.02,0.00019848,2]
[374650864,1753399864511,-460.0,0.00019848,2]
[374650865,1753399864521,-151.0,0.00019849,2]
[374650866,1753399864531,-151.0,0.00019849,2]
[374650867,1753399864540,-460.0,0.00019849,2]
[374650868,1753399864550,-460.0,0.00019849,2]
[374650869,1753399864560,-460.0,0.00019849,2]
[374650870,1753399864570,-460.0,0.00019849,2]
[374650871,1753399864579,-584.784385,0.00019849,2]
[374650872,1753399864590,-584.784385,0.00019849,2]
[374650873,1753399864599,-460.0,0.00019849,2]
[374650874,1753399864609,-460.0,0.00019849,2]
[374650875,1753399864620,-460.0,0.00019849,2]
[374650876,1753399864630,-460.0,0.00019849,2]
[374650877,1753399864639,-564.18,0.00019849,2]
[374650878,1753399864649,-272.086409,0.00019849,2]
[374650879,1753399864658,-272.086409,0.00019849,2]
[374650880,1753399864668,-460.0,0.00019849,2]
[374650881,1753399864678,-207.7676139,0.00019849,2]
[374650882,1753399864687,-289.320867,0.00019849,2]
[374650883,1753399864697,-289.320867,0.00019849,2]
[374650884,1753399864706,-253.865037,0.00019849,2]
[374650885,1753399864716,-253.865039,0.00019849,2]
[374650886,1753399864725,-151.0,0.0001985,2]
[374650887,1753399864735,-151.0,0.0001985,2]
[374650888,1753399864744,-151.0,0.0001985,2]
[374650889,1753399864753,-151.0,0.0001985,2]
[374650890,1753399864763,-460.0,0.0001985,2]
[374650891,1753399864772,-415.50965263,0.0001985,2]
[374650892,1753399864782,-460.0,0.0001985,2]
[374650893,1753399864791,-460.0,0.0001985,2]
[374650894,1753399864801,-1062.04,0.0001985,2]
[374650895,1753399864811,-460.0,0.0001985,2]
[374650896,1753399864820,-855.34,0.0001985,2]
[374650897,1753399864830,-460.0,0.0001985,2]
[374650898,1753399864839,-460.0,0.0001985,2]
[374650899,1753399864849,-460.0,0.0001985,2]
[374650900,1753399864858,-509.52806293,0.0001985,2]
[374650901,1753399864868,-460.0,0.0001985,2]
[374650902,1753399864878,-460.0,0.0001985,2]
[374650903,1753399864888,-460.0,0.0001985,2]
[374650904,1753399864898,-460.0,0.0001985,2]
[374650905,1753399864908,-460.0,0.0001985,2]
[374650906,1753399864918,-237.186942,0.00019851,2]
[374650907,1753399864928,-151.0,0.00019851,2]
[374650908,1753399864939,-1500.0,0.00019868,2]
[374650909,1753399864950,-1000.0,0.00019868,2]
[374650910,1753399864959,-1500.0,0.00019868,2]
[374650911,1753399864969,-345.0,0.00019875,2]
[374650912,1753399864979,-1317.32,0.00019883,2]
[374650913,1753399864990,-2004.01418139,0.000199,3]
[374650914,1753399864999,-4232.93816491,0.000199,2]
[374650915,1753399865009,-2811.08287909,0.00019922,2]
[374650916,1753399865019,-345.0,0.00019929,2]
[374650917,1753399865028,-345.0,0.00019941,2]
[374650918,1753399865042,-160.0,0.00019945,2]
[374650919,1753399865053,-151.0,0.00019949,2]
[374650920,1753399865151,-151.0,0.00019949,2]
[374650921,1753399865174,-227.811382,0.00019949,2]
[374650922,1753399865183,-151.0,0.00019949,2]
[374650923,1753399865193,-227.811382,0.00019949,2]
[374650924,1753399865202,-345.0,0.00019959,2]
[374650925,1753399865212,-345.0,0.0001996,2]
[374650926,1753399865222,-345.0,0.00019967,2]
[374650927,1753399865232,-501.487689,0.00019973,2]
[374650928,1753399865242,-500.0,0.00019973,2]
[374650929,1753399865251,-500.0,0.00019973,2]
[374650930,1753399865260,-500.0,0.00019973,2]
[374650931,1753399865270,-300.35007006,0.00019973,2]
[374650932,1753399865279,-500.0,0.00019973,2]
[374650933,1753399865289,-350.99718503,0.00019973,2]
[374650934,1753399865298,-500.0,0.00019973,2]
[374650935,1753399865308,-500.0,0.00019973,2]
[374650936,1753399865317,-502.10753571,0.00019973,2]
[374650937,1753399865327,-370.46457657,0.00019973,2]
[374650938,1753399865337,-182.27073641,0.00019973,2]
[374650939,1753399865346,-500.0,0.00019973,2]
[374650940,1753399865355,-500.0,0.00019973,2]
[374650941,1753399865366,-345.0,0.0002,2]
[374650942,1753399865376,-16000.0,0.0002,2]
[374650943,1753399865385,-35850.79696441,0.0002,2]
[374650944,1753399865394,-49374.43588962,0.0002,2]
[374650945,1753399865404,-21824.64398007,0.0002,2]
[374650946,1753399865413,-7000.0,0.0002,3]
[374650947,1753399865422,-151.0,0.0002,2]
[374650948,1753399865432,-151.0,0.0002,2]
[374650949,1753399865441,-151.0,0.0002,2]
[374650950,1753399865451,-13000.0,0.0002,2]
[374650951,1753399865460,-151.0,0.0002,2]
[374650952,1753399865469,-151.0,0.0002,2]
[374650953,1753399865479,-151.0,0.0002,2]
[374650954,1753399865488,-402.712883,0.0002,2]
[374650955,1753399865498,-402.712883,0.0002,2]
[374650956,1753399865507,-402.712883,0.0002,2]
[374650957,1753399865517,-402.712883,0.0002,2]
[374650958,1753399865526,-227.811382,0.0002,2]
[374650959,1753399865536,-172.0,0.0002,2]
[374650960,1753399865545,-227.811382,0.0002,2]
[374650961,1753399865555,-158.206444,0.0002,2]
[374650962,1753399865564,-158.206444,0.0002,2]
[374650963,1753399865574,-158.206444,0.0002,2]
[374650964,1753399865584,-158.206444,0.0002,2]
[374650965,1753399865593,-584.784385,0.0002,2]
[374650966,1753399865603,-584.784385,0.0002,2]
[374650967,1753399865612,-188.465792,0.0002,2]
[374650968,1753399865626,-272.086409,0.0002,2]
[374650969,1753399865636,-272.086409,0.0002,2]
[374650970,1753399865645,-151.0,0.0002,2]
[374650971,1753399865655,-151.0,0.0002,2]
[374650972,1753399865665,-337.648918,0.0002,2]
[374650973,1753399865675,-337.648918,0.0002,2]
[374650974,1753399865684,-337.648918,0.0002,2]
[374650975,1753399865694,-337.648916,0.0002,2]
[374650976,1753399865703,-289.320867,0.0002,2]
[374650977,1753399865713,-289.320867,0.0002,2]
[374650978,1753399865723,-646.526861,0.0002,2]
[374650979,1753399865732,-646.526861,0.0002,2]